[Event "Titled Tuesday Blitz March 08 Early 2022"]
[White "Tabatabaei, M. Amin"]
[Black "Tymrakiewicz, Rafal"]
[WhiteFideId "12521213"]
[BlackFideId "1108832"]
[WhiteElo "2544"]
[BlackElo "2205"]
[Result "1-0"]
[Round "01"]
[TimeControl "180+1"]
[Date "2022.03.08"]
[WhiteClock "0:00:25"]
[BlackClock "0:00:03"]

1. d4 {[%clk 0:03:00]}  Nf6 {[%clk 0:02:58]} 2. Nf3 {[%clk 0:03:01]}  g6 {[%clk 0:02:55]} 3. Bf4 {[%clk 0:02:55]}  c5 {[%clk 0:02:53]} 4. e3 {[%clk 0:02:34]}  cxd4 {[%clk 0:02:52]} 5. exd4 {[%clk 0:02:34]}  Bg7 {[%clk 0:02:53]} 6. c3 {[%clk 0:02:33]}  O-O {[%clk 0:02:39]} 7. Be2 {[%clk 0:02:33]}  d5 {[%clk 0:02:38]} 8. O-O {[%clk 0:02:32]}  Nc6 {[%clk 0:02:39]} 9. h3 {[%clk 0:02:32]}  Bf5 {[%clk 0:02:34]} 10. Nbd2 {[%clk 0:02:31]}  a6 {[%clk 0:02:23]} 11. a4 {[%clk 0:02:28]}  Ne4 {[%clk 0:02:13]} 12. Re1 {[%clk 0:02:27]}  Nxd2 {[%clk 0:02:11]} 13. Nxd2 {[%clk 0:02:22]}  Rc8 {[%clk 0:02:02]} 14. Bf1 {[%clk 0:02:19]}  Na5 {[%clk 0:01:59]} 15. b4 {[%clk 0:02:17]}  Nc4 {[%clk 0:01:59]} 16. Nxc4 {[%clk 0:02:15]}  dxc4 {[%clk 0:01:59]} 17. a5 {[%clk 0:02:13]}  Qd7 {[%clk 0:01:46]} 18. Qf3 {[%clk 0:02:09]}  Be6 {[%clk 0:01:40]} 19. Qe2 {[%clk 0:01:59]}  Rfe8 {[%clk 0:01:37]} 20. Be5 {[%clk 0:01:58]}  Bh6 {[%clk 0:01:24]} 21. Rad1 {[%clk 0:01:51]}  Bd5 {[%clk 0:01:24]} 22. h4 {[%clk 0:01:46]}  Qf5 {[%clk 0:01:20]} 23. Bg3 {[%clk 0:01:29]}  Bg7 {[%clk 0:01:18]} 24. Qe3 {[%clk 0:01:28]}  h5 {[%clk 0:01:17]} 25. Qf4 {[%clk 0:01:28]}  Qxf4 {[%clk 0:01:16]} 26. Bxf4 {[%clk 0:01:28]}  Bf6 {[%clk 0:01:13]} 27. Bg3 {[%clk 0:01:27]}  e6 {[%clk 0:01:11]} 28. Re3 {[%clk 0:01:25]}  Red8 {[%clk 0:01:07]} 29. Kh2 {[%clk 0:01:25]}  Rd7 {[%clk 0:01:04]} 30. Kh3 {[%clk 0:01:25]}  Rc6 {[%clk 0:01:01]} 31. Bf4 {[%clk 0:01:24]}  Kg7 {[%clk 0:00:59]} 32. f3 {[%clk 0:01:23]}  Rc8 {[%clk 0:00:57]} 33. g4 {[%clk 0:01:17]}  hxg4+ {[%clk 0:00:53]} 34. fxg4 {[%clk 0:01:18]}  Rh8 {[%clk 0:00:53]} 35. g5 {[%clk 0:01:18]}  Bd8 {[%clk 0:00:47]} 36. Be2 {[%clk 0:01:17]}  Bc7 {[%clk 0:00:45]} 37. Rf1 {[%clk 0:01:13]}  Bxf4 {[%clk 0:00:42]} 38. Rxf4 {[%clk 0:01:14]}  Rc7 {[%clk 0:00:31]} 39. Kg3 {[%clk 0:00:56]}  Rd7 {[%clk 0:00:31]} 40. Bd1 {[%clk 0:00:55]}  Rc7 {[%clk 0:00:30]} 41. Re2 {[%clk 0:00:54]}  Rd7 {[%clk 0:00:30]} 42. Ba4 {[%clk 0:00:54]}  Rc7 {[%clk 0:00:27]} 43. Re5 {[%clk 0:00:54]}  Rd8 {[%clk 0:00:26]} 44. Bd1 {[%clk 0:00:53]}  Rh8 {[%clk 0:00:25]} 45. Bg4 {[%clk 0:00:51]}  Rd7 {[%clk 0:00:21]} 46. Re2 {[%clk 0:00:49]}  Rc7 {[%clk 0:00:19]} 47. Ref2 {[%clk 0:00:48]}  Re7 {[%clk 0:00:19]} 48. Be2 {[%clk 0:00:48]}  Rc7 {[%clk 0:00:18]} 49. Rh2 {[%clk 0:00:48]}  Re7 {[%clk 0:00:18]} 50. Bf1 {[%clk 0:00:42]}  Rc7 {[%clk 0:00:18]} 51. Rh3 {[%clk 0:00:41]}  Rcc8 {[%clk 0:00:18]} 52. Be2 {[%clk 0:00:41]}  Rcf8 {[%clk 0:00:17]} 53. Rf6 {[%clk 0:00:40]}  Re8 {[%clk 0:00:17]} 54. h5 {[%clk 0:00:39]}  gxh5 {[%clk 0:00:16]} 55. Bxh5 {[%clk 0:00:39]}  Re7 {[%clk 0:00:16]} 56. Kg4 {[%clk 0:00:37]}  Be4 {[%clk 0:00:16]} 57. Rh4 {[%clk 0:00:29]}  Bf5+ {[%clk 0:00:14]} 58. Kg3 {[%clk 0:00:30]}  Bd3 {[%clk 0:00:13]} 59. Bf3 {[%clk 0:00:29]}  Rd7 {[%clk 0:00:13]} 60. Rxh8 {[%clk 0:00:29]}  Kxh8 {[%clk 0:00:12]} 61. Kf4 {[%clk 0:00:29]}  Kg7 {[%clk 0:00:12]} 62. Ke5 {[%clk 0:00:29]}  Bg6 {[%clk 0:00:09]} 63. d5 {[%clk 0:00:27]}  exd5 {[%clk 0:00:09]} 64. Bxd5 {[%clk 0:00:28]}  Re7+ {[%clk 0:00:09]} 65. Kd4 {[%clk 0:00:29]}  Rd7 {[%clk 0:00:08]} 66. Rb6 {[%clk 0:00:28]}  Bh5 {[%clk 0:00:06]} 67. Rxb7 {[%clk 0:00:27]}  Rd6 {[%clk 0:00:06]} 68. Rc7 {[%clk 0:00:23]}  Kg6 {[%clk 0:00:05]} 69. Rc6 {[%clk 0:00:23]}  Rxc6 {[%clk 0:00:04]} 70. Bxc6 {[%clk 0:00:24]}  Be2 {[%clk 0:00:04]} 71. b5 {[%clk 0:00:24]}  axb5 {[%clk 0:00:03]} 72. a6 {[%clk 0:00:25]} 1-0


[Site "https://www.chess.com"]

[Event "Titled Tuesday Blitz March 08 Early 2022"]
[White "Toncheva, Nadya"]
[Black "Kosakowski, Jakub"]
[WhiteFideId "2924056"]
[BlackFideId "1185080"]
[WhiteElo "1884"]
[BlackElo "2476"]
[Result "1-0"]
[Round "01"]
[TimeControl "180+1"]
[Date "2022.03.09"]
[WhiteClock "0:00:29"]
[BlackClock "0:00:11"]

1. e4 {[%clk 0:02:56]}  g6 {[%clk 0:02:45]} 2. d4 {[%clk 0:02:55]}  Bg7 {[%clk 0:02:45]} 3. Nf3 {[%clk 0:02:54]}  d6 {[%clk 0:02:45]} 4. Bd3 {[%clk 0:02:53]}  Nf6 {[%clk 0:02:45]} 5. O-O {[%clk 0:02:53]}  O-O {[%clk 0:02:45]} 6. Re1 {[%clk 0:02:53]}  Nc6 {[%clk 0:02:43]} 7. c3 {[%clk 0:02:53]}  e5 {[%clk 0:02:43]} 8. Nbd2 {[%clk 0:02:53]}  Re8 {[%clk 0:02:43]} 9. Qc2 {[%clk 0:02:51]}  Nh5 {[%clk 0:02:37]} 10. Nf1 {[%clk 0:02:43]}  exd4 {[%clk 0:02:30]} 11. cxd4 {[%clk 0:02:40]}  Nxd4 {[%clk 0:02:16]} 12. Nxd4 {[%clk 0:02:40]}  Bxd4 {[%clk 0:02:17]} 13. Ng3 {[%clk 0:02:35]}  Nxg3 {[%clk 0:02:16]} 14. hxg3 {[%clk 0:02:36]}  c6 {[%clk 0:02:15]} 15. Be3 {[%clk 0:02:34]}  Bg7 {[%clk 0:02:12]} 16. Rad1 {[%clk 0:02:33]}  Be6 {[%clk 0:02:12]} 17. b3 {[%clk 0:02:28]}  Qa5 {[%clk 0:02:03]} 18. Bc4 {[%clk 0:02:20]}  Rad8 {[%clk 0:02:03]} 19. Re2 {[%clk 0:02:18]}  d5 {[%clk 0:01:43]} 20. Bd3 {[%clk 0:02:09]}  dxe4 {[%clk 0:01:33]} 21. Bxe4 {[%clk 0:02:07]}  Rxd1+ {[%clk 0:01:32]} 22. Qxd1 {[%clk 0:02:08]}  Bg4 {[%clk 0:01:32]} 23. Bf3 {[%clk 0:02:05]}  Bxf3 {[%clk 0:01:30]} 24. gxf3 {[%clk 0:02:06]}  h5 {[%clk 0:01:28]} 25. Bb6 {[%clk 0:01:51]}  axb6 {[%clk 0:01:13]} 26. Rxe8+ {[%clk 0:01:49]}  Kh7 {[%clk 0:01:13]} 27. Re7 {[%clk 0:01:44]}  Qf5 {[%clk 0:01:06]} 28. Qe2 {[%clk 0:01:32]}  h4 {[%clk 0:01:04]} 29. Qe4 {[%clk 0:01:31]}  hxg3 {[%clk 0:00:25]} 30. Qxf5 {[%clk 0:01:11]}  gxf2+ {[%clk 0:00:26]} 31. Kxf2 {[%clk 0:01:12]}  gxf5 {[%clk 0:00:20]} 32. Rxf7 {[%clk 0:01:13]}  Kg6 {[%clk 0:00:20]} 33. Rxb7 {[%clk 0:01:13]}  f4 {[%clk 0:00:21]} 34. Ke2 {[%clk 0:01:12]}  Bd4 {[%clk 0:00:21]} 35. Kd3 {[%clk 0:01:12]}  Be3 {[%clk 0:00:21]} 36. Rc7 {[%clk 0:01:10]}  c5 {[%clk 0:00:20]} 37. a4 {[%clk 0:00:41]}  Kg5 {[%clk 0:00:20]} 38. Ke4 {[%clk 0:00:40]}  Kh4 {[%clk 0:00:20]} 39. Rc6 {[%clk 0:00:37]}  Kg3 {[%clk 0:00:20]} 40. Rxb6 {[%clk 0:00:36]}  c4 {[%clk 0:00:19]} 41. Rb4 {[%clk 0:00:33]}  c3 {[%clk 0:00:09]} 42. Rc4 {[%clk 0:00:33]}  Bd2 {[%clk 0:00:10]} 43. a5 {[%clk 0:00:31]}  Kf2 {[%clk 0:00:11]} 44. a6 {[%clk 0:00:29]} 1-0


[Site "https://www.chess.com"]

[Event "Titled Tuesday Blitz March 08 Early 2022"]
[White "Tsatsalashvili, Keti"]
[Black "Dronavalli, Harika"]
[WhiteFideId "13603434"]
[BlackFideId "5015197"]
[WhiteElo "2246"]
[BlackElo "2382"]
[Result "0-1"]
[Round "01"]
[TimeControl "180+1"]
[Date "2022.03.09"]
[WhiteClock "0:00:01"]
[BlackClock "0:00:45"]

1. d4 {[%clk 0:02:59]}  Nf6 {[%clk 0:02:56]} 2. c4 {[%clk 0:02:59]}  e6 {[%clk 0:02:56]} 3. Nf3 {[%clk 0:02:58]}  d5 {[%clk 0:02:55]} 4. Bg5 {[%clk 0:02:51]}  dxc4 {[%clk 0:02:49]} 5. e3 {[%clk 0:02:49]}  h6 {[%clk 0:02:32]} 6. Bh4 {[%clk 0:02:35]}  b5 {[%clk 0:02:30]} 7. a4 {[%clk 0:02:26]}  c6 {[%clk 0:02:28]} 8. Be2 {[%clk 0:02:13]}  Bb4+ {[%clk 0:02:24]} 9. Nc3 {[%clk 0:02:08]}  O-O {[%clk 0:02:19]} 10. O-O {[%clk 0:02:07]}  Bxc3 {[%clk 0:02:14]} 11. bxc3 {[%clk 0:02:08]}  Nbd7 {[%clk 0:02:15]} 12. Ne5 {[%clk 0:02:02]}  Nxe5 {[%clk 0:02:09]} 13. dxe5 {[%clk 0:02:03]}  Qxd1 {[%clk 0:02:09]} 14. Rfxd1 {[%clk 0:02:03]}  Nd5 {[%clk 0:02:09]} 15. Bf3 {[%clk 0:01:54]}  g5 {[%clk 0:02:02]} 16. Bg3 {[%clk 0:01:41]}  Nxc3 {[%clk 0:01:27]} 17. Bxc6 {[%clk 0:01:35]}  Rb8 {[%clk 0:01:27]} 18. Bxb5 {[%clk 0:00:40]}  Nxd1 {[%clk 0:01:26]} 19. Rxd1 {[%clk 0:00:41]}  Bb7 {[%clk 0:01:25]} 20. Bxc4 {[%clk 0:00:37]}  Rfd8 {[%clk 0:01:25]} 21. Rd6 {[%clk 0:00:21]}  Rdc8 {[%clk 0:01:10]} 22. Bf1 {[%clk 0:00:20]}  Rc1 {[%clk 0:01:07]} 23. h4 {[%clk 0:00:20]}  Bd5 {[%clk 0:01:05]} 24. hxg5 {[%clk 0:00:09]}  hxg5 {[%clk 0:01:04]} 25. e4 {[%clk 0:00:08]}  Bc4 {[%clk 0:01:02]} 26. Kh2 {[%clk 0:00:06]}  Bxf1 {[%clk 0:01:02]} 27. f4 {[%clk 0:00:06]}  Kg7 {[%clk 0:00:56]} 28. f5 {[%clk 0:00:06]}  Rh8+ {[%clk 0:00:56]} 29. Kg1 {[%clk 0:00:05]}  Bd3+ {[%clk 0:00:52]} 30. Kf2 {[%clk 0:00:05]}  Bxe4 {[%clk 0:00:52]} 31. fxe6 {[%clk 0:00:03]}  fxe6 {[%clk 0:00:52]} 32. Rxe6 {[%clk 0:00:03]}  Rc2+ {[%clk 0:00:46]} 33. Ke3 {[%clk 0:00:03]}  Rxg2 {[%clk 0:00:45]} 34. Re7+ {[%clk 0:00:01]}  Kg6 {[%clk 0:00:45]} 0-1


[Site "https://www.chess.com"]

[Event "Titled Tuesday Blitz March 08 Early 2022"]
[White "Vifleemskaia, Svetlana"]
[Black "Karolczuk, Iwo"]
[WhiteFideId "4129490"]
[BlackFideId "21816972"]
[WhiteElo "1901"]
[BlackElo "2243"]
[Result "0-1"]
[Round "01"]
[TimeControl "180+1"]
[Date "2022.03.09"]
[WhiteClock "0:00:05"]
[BlackClock "0:00:15"]

1. d4 {[%clk 0:02:55]}  Nf6 {[%clk 0:02:59]} 2. c4 {[%clk 0:02:54]}  g6 {[%clk 0:02:58]} 3. Nc3 {[%clk 0:02:54]}  Bg7 {[%clk 0:02:59]} 4. e4 {[%clk 0:02:54]}  O-O {[%clk 0:02:59]} 5. Nge2 {[%clk 0:02:54]}  c6 {[%clk 0:02:58]} 6. e5 {[%clk 0:02:49]}  Ne8 {[%clk 0:02:58]} 7. Ng3 {[%clk 0:02:43]}  d6 {[%clk 0:02:58]} 8. exd6 {[%clk 0:02:42]}  Nxd6 {[%clk 0:02:52]} 9. Be2 {[%clk 0:02:36]}  Nf5 {[%clk 0:02:45]} 10. Nxf5 {[%clk 0:02:32]}  Bxf5 {[%clk 0:02:46]} 11. Be3 {[%clk 0:02:25]}  Na6 {[%clk 0:02:34]} 12. a3 {[%clk 0:02:22]}  Qc7 {[%clk 0:02:33]} 13. g4 {[%clk 0:02:04]}  Be6 {[%clk 0:02:22]} 14. Qc2 {[%clk 0:01:53]}  Rad8 {[%clk 0:01:58]} 15. O-O-O {[%clk 0:01:51]}  Qa5 {[%clk 0:01:38]} 16. Qe4 {[%clk 0:01:32]}  Rfe8 {[%clk 0:01:15]} 17. h4 {[%clk 0:01:19]}  Bc8 {[%clk 0:01:10]} 18. h5 {[%clk 0:00:49]}  f5 {[%clk 0:00:42]} 19. Qc2 {[%clk 0:00:35]}  e5 {[%clk 0:00:33]} 20. d5 {[%clk 0:00:20]}  e4 {[%clk 0:00:24]} 21. hxg6 {[%clk 0:00:17]}  hxg6 {[%clk 0:00:25]} 22. Bd4 {[%clk 0:00:13]}  Nc5 {[%clk 0:00:14]} 23. b4 {[%clk 0:00:06]}  Qxa3+ {[%clk 0:00:14]} 24. Qb2 {[%clk 0:00:06]}  Nb3+ {[%clk 0:00:14]} 25. Kc2 {[%clk 0:00:04]}  Qxb2+ {[%clk 0:00:14]} 26. Kxb2 {[%clk 0:00:05]}  Nxd4 {[%clk 0:00:15]} 0-1


[Site "https://www.chess.com"]

[Event "Titled Tuesday Blitz March 08 Early 2022"]
[White "Vogel, Roven"]
[Black "Stepanencu, Nicodim-Cosmin"]
[WhiteFideId "12908088"]
[BlackFideId "1256220"]
[WhiteElo "2516"]
[BlackElo "1913"]
[Result "1-0"]
[Round "01"]
[TimeControl "180+1"]
[Date "2022.03.09"]
[WhiteClock "0:01:20"]
[BlackClock "0:00:03"]

1. e4 {[%clk 0:02:53]}  e6 {[%clk 0:02:56]} 2. d4 {[%clk 0:02:52]}  d5 {[%clk 0:02:55]} 3. Nd2 {[%clk 0:02:52]}  c5 {[%clk 0:02:53]} 4. Ngf3 {[%clk 0:02:51]}  cxd4 {[%clk 0:02:52]} 5. exd5 {[%clk 0:02:50]}  exd5 {[%clk 0:02:51]} 6. Nxd4 {[%clk 0:02:49]}  Nc6 {[%clk 0:02:52]} 7. N2f3 {[%clk 0:02:47]}  Bd6 {[%clk 0:02:43]} 8. Be2 {[%clk 0:02:39]}  Nge7 {[%clk 0:02:41]} 9. O-O {[%clk 0:02:37]}  O-O {[%clk 0:02:42]} 10. c3 {[%clk 0:02:35]}  Bg4 {[%clk 0:02:37]} 11. Be3 {[%clk 0:02:34]}  a6 {[%clk 0:02:28]} 12. h3 {[%clk 0:02:32]}  Bh5 {[%clk 0:02:27]} 13. Nh4 {[%clk 0:02:25]}  Bxe2 {[%clk 0:02:20]} 14. Qxe2 {[%clk 0:02:21]}  Qd7 {[%clk 0:01:58]} 15. Qh5 {[%clk 0:02:19]}  f5 {[%clk 0:01:34]} 16. Bg5 {[%clk 0:02:09]}  Nxd4 {[%clk 0:01:18]} 17. cxd4 {[%clk 0:02:10]}  Nc6 {[%clk 0:01:17]} 18. Nf3 {[%clk 0:02:10]}  Rae8 {[%clk 0:01:15]} 19. Bd2 {[%clk 0:02:07]}  h6 {[%clk 0:01:08]} 20. Bc3 {[%clk 0:01:59]}  b5 {[%clk 0:01:04]} 21. a3 {[%clk 0:01:54]}  a5 {[%clk 0:01:02]} 22. b3 {[%clk 0:01:47]}  b4 {[%clk 0:00:53]} 23. axb4 {[%clk 0:01:46]}  axb4 {[%clk 0:00:54]} 24. Bd2 {[%clk 0:01:47]}  Re4 {[%clk 0:00:51]} 25. Ra6 {[%clk 0:01:46]}  Nxd4 {[%clk 0:00:48]} 26. Nxd4 {[%clk 0:01:43]}  Rxd4 {[%clk 0:00:49]} 27. Bxh6 {[%clk 0:01:43]}  Be5 {[%clk 0:00:33]} 28. Be3 {[%clk 0:01:39]}  Rd3 {[%clk 0:00:25]} 29. Bc5 {[%clk 0:01:38]}  Rb8 {[%clk 0:00:22]} 30. Re1 {[%clk 0:01:37]}  Qc7 {[%clk 0:00:02]} 31. Ra7 {[%clk 0:01:21]}  Bh2+ {[%clk 0:00:02]} 32. Kh1 {[%clk 0:01:20]}  Qxc5 {[%clk 0:00:03]} 33. Qf7+ {[%clk 0:01:20]} 1-0


[Site "https://www.chess.com"]

[Event "Titled Tuesday Blitz March 08 Early 2022"]
[White "Vokhidov, Shamsiddin"]
[Black "Seul, Georg"]
[WhiteFideId "14204223"]
[BlackFideId "4601653"]
[WhiteElo "2611"]
[BlackElo "2271"]
[Result "1-0"]
[Round "01"]
[TimeControl "180+1"]
[Date "2022.03.08"]
[WhiteClock "0:01:32"]
[BlackClock "0:00:11"]

1. e4 {[%clk 0:03:00]}  c6 {[%clk 0:02:45]} 2. d4 {[%clk 0:03:01]}  d5 {[%clk 0:02:44]} 3. e5 {[%clk 0:03:01]}  c5 {[%clk 0:02:44]} 4. Nf3 {[%clk 0:03:01]}  Nc6 {[%clk 0:02:42]} 5. dxc5 {[%clk 0:03:01]}  Bg4 {[%clk 0:02:41]} 6. c3 {[%clk 0:03:01]}  e6 {[%clk 0:02:40]} 7. b4 {[%clk 0:02:56]}  g6 {[%clk 0:02:19]} 8. Bb5 {[%clk 0:02:53]}  Qc7 {[%clk 0:02:11]} 9. Bf4 {[%clk 0:02:52]}  Bg7 {[%clk 0:02:05]} 10. Nbd2 {[%clk 0:02:49]}  Ne7 {[%clk 0:01:39]} 11. O-O {[%clk 0:02:43]}  O-O {[%clk 0:01:35]} 12. Re1 {[%clk 0:02:38]}  a5 {[%clk 0:01:30]} 13. a3 {[%clk 0:02:37]}  axb4 {[%clk 0:01:15]} 14. cxb4 {[%clk 0:02:34]}  h6 {[%clk 0:01:07]} 15. h3 {[%clk 0:02:33]}  Bxf3 {[%clk 0:01:03]} 16. Nxf3 {[%clk 0:02:34]}  g5 {[%clk 0:01:02]} 17. Bh2 {[%clk 0:02:32]}  Ng6 {[%clk 0:01:02]} 18. Qe2 {[%clk 0:02:10]}  b6 {[%clk 0:00:41]} 19. Rac1 {[%clk 0:02:05]}  Nce7 {[%clk 0:00:32]} 20. a4 {[%clk 0:02:06]}  bxc5 {[%clk 0:00:32]} 21. Rxc5 {[%clk 0:02:07]}  Qb8 {[%clk 0:00:28]} 22. Nd4 {[%clk 0:02:05]}  Rc8 {[%clk 0:00:19]} 23. Qg4 {[%clk 0:01:45]}  Rxc5 {[%clk 0:00:17]} 24. bxc5 {[%clk 0:01:46]}  Bxe5 {[%clk 0:00:12]} 25. Rxe5 {[%clk 0:01:33]}  Nxe5 {[%clk 0:00:12]} 26. Qe2 {[%clk 0:01:33]}  N7g6 {[%clk 0:00:11]} 27. Nc6 {[%clk 0:01:32]} 1-0


[Site "https://www.chess.com"]

[Event "Titled Tuesday Blitz March 08 Early 2022"]
[White "Weetik, Vjacheslav"]
[Black "Fernandez Siles, Luis"]
[WhiteFideId "4153472"]
[BlackFideId "2209420"]
[WhiteElo "2469"]
[BlackElo "2212"]
[Result "1-0"]
[Round "01"]
[TimeControl "180+1"]
[Date "2022.03.09"]
[WhiteClock "0:00:07"]
[BlackClock "0:00:01"]

1. d4 {[%clk 0:02:58]}  Nf6 {[%clk 0:02:54]} 2. Nf3 {[%clk 0:02:57]}  g6 {[%clk 0:02:52]} 3. Bg5 {[%clk 0:02:57]}  Bg7 {[%clk 0:02:52]} 4. Nbd2 {[%clk 0:02:57]}  d5 {[%clk 0:02:52]} 5. e3 {[%clk 0:02:57]}  O-O {[%clk 0:02:52]} 6. Be2 {[%clk 0:02:57]}  c5 {[%clk 0:02:52]} 7. c3 {[%clk 0:02:58]}  Nc6 {[%clk 0:02:52]} 8. O-O {[%clk 0:02:58]}  Nd7 {[%clk 0:02:47]} 9. Rb1 {[%clk 0:02:44]}  Qe8 {[%clk 0:02:40]} 10. b4 {[%clk 0:02:43]}  cxb4 {[%clk 0:02:32]} 11. cxb4 {[%clk 0:02:43]}  a6 {[%clk 0:02:32]} 12. a4 {[%clk 0:02:40]}  f6 {[%clk 0:02:31]} 13. Bh4 {[%clk 0:02:39]}  e5 {[%clk 0:02:31]} 14. b5 {[%clk 0:02:38]}  axb5 {[%clk 0:02:29]} 15. axb5 {[%clk 0:02:38]}  Ne7 {[%clk 0:02:26]} 16. b6 {[%clk 0:02:21]}  e4 {[%clk 0:02:23]} 17. Ne1 {[%clk 0:02:21]}  Nf5 {[%clk 0:02:20]} 18. Bg3 {[%clk 0:02:17]}  Nxg3 {[%clk 0:02:19]} 19. hxg3 {[%clk 0:02:18]}  Qe6 {[%clk 0:02:19]} 20. Qb3 {[%clk 0:02:14]}  f5 {[%clk 0:02:10]} 21. Nc2 {[%clk 0:02:09]}  g5 {[%clk 0:02:06]} 22. f4 {[%clk 0:01:39]}  gxf4 {[%clk 0:01:55]} 23. gxf4 {[%clk 0:01:36]}  Rf6 {[%clk 0:01:41]} 24. Rfc1 {[%clk 0:01:21]}  Nxb6 {[%clk 0:01:34]} 25. Nb4 {[%clk 0:01:20]}  Rf7 {[%clk 0:01:06]} 26. Rc5 {[%clk 0:01:15]}  Bf8 {[%clk 0:00:53]} 27. Rxd5 {[%clk 0:00:46]}  Nxd5 {[%clk 0:00:49]} 28. Nxd5 {[%clk 0:00:45]}  Ra3 {[%clk 0:00:48]} 29. Qb5 {[%clk 0:00:42]}  Bd7 {[%clk 0:00:42]} 30. Qc4 {[%clk 0:00:24]}  b5 {[%clk 0:00:42]} 31. Rxb5 {[%clk 0:00:10]}  Bxb5 {[%clk 0:00:38]} 32. Qxb5 {[%clk 0:00:11]}  Ra1+ {[%clk 0:00:37]} 33. Kf2 {[%clk 0:00:11]}  Qh6 {[%clk 0:00:36]} 34. Nf1 {[%clk 0:00:08]}  Ra2 {[%clk 0:00:31]} 35. Qc4 {[%clk 0:00:07]}  Raa7 {[%clk 0:00:25]} 36. Nc3 {[%clk 0:00:03]}  Kh8 {[%clk 0:00:23]} 37. d5 {[%clk 0:00:02]}  Qh4+ {[%clk 0:00:21]} 38. g3 {[%clk 0:00:02]}  Qh6 {[%clk 0:00:17]} 39. Nb5 {[%clk 0:00:02]}  Rad7 {[%clk 0:00:15]} 40. Qd4+ {[%clk 0:00:02]}  Qf6 {[%clk 0:00:16]} 41. Qc4 {[%clk 0:00:02]}  Bg7 {[%clk 0:00:14]} 42. g4 {[%clk 0:00:03]}  fxg4 {[%clk 0:00:11]} 43. Qxe4 {[%clk 0:00:02]}  Qb6 {[%clk 0:00:11]} 44. Nd4 {[%clk 0:00:03]}  Qd6 {[%clk 0:00:10]} 45. Ne6 {[%clk 0:00:02]}  Qxd5 {[%clk 0:00:09]} 46. Qxd5 {[%clk 0:00:03]}  Rxd5 {[%clk 0:00:09]} 47. Bxg4 {[%clk 0:00:04]}  Rd1 {[%clk 0:00:08]} 48. Bxd1 {[%clk 0:00:03]}  Re7 {[%clk 0:00:08]} 49. Bg4 {[%clk 0:00:04]}  Bf6 {[%clk 0:00:08]} 50. Ng3 {[%clk 0:00:04]}  Kg8 {[%clk 0:00:08]} 51. Kf3 {[%clk 0:00:05]}  Bb2 {[%clk 0:00:08]} 52. e4 {[%clk 0:00:05]}  Ra7 {[%clk 0:00:08]} 53. Nh5 {[%clk 0:00:04]}  Ra3+ {[%clk 0:00:09]} 54. Kg2 {[%clk 0:00:04]}  Kf7 {[%clk 0:00:10]} 55. Ng5+ {[%clk 0:00:04]}  Kg6 {[%clk 0:00:10]} 56. Ng3 {[%clk 0:00:05]}  Bc1 {[%clk 0:00:09]} 57. Bf5+ {[%clk 0:00:05]}  Kg7 {[%clk 0:00:08]} 58. Ne2 {[%clk 0:00:05]}  Ra2 {[%clk 0:00:06]} 59. Kf3 {[%clk 0:00:05]}  Ra3+ {[%clk 0:00:06]} 60. Kg4 {[%clk 0:00:06]}  Be3 {[%clk 0:00:05]} 61. e5 {[%clk 0:00:06]}  Ra1 {[%clk 0:00:05]} 62. Ng3 {[%clk 0:00:06]}  Rg1 {[%clk 0:00:04]} 63. Kf3 {[%clk 0:00:07]}  Bc1 {[%clk 0:00:04]} 64. Nh5+ {[%clk 0:00:07]}  Kf8 {[%clk 0:00:04]} 65. Nxh7+ {[%clk 0:00:07]}  Ke7 {[%clk 0:00:03]} 66. Ng5 {[%clk 0:00:08]}  Rf1+ {[%clk 0:00:02]} 67. Kg4 {[%clk 0:00:08]}  Rg1+ {[%clk 0:00:02]} 68. Ng3 {[%clk 0:00:08]}  Rf1 {[%clk 0:00:03]} 69. N5e4 {[%clk 0:00:08]}  Rxf4+ {[%clk 0:00:02]} 70. Kh5 {[%clk 0:00:09]}  Rxf5+ {[%clk 0:00:01]} 71. Nxf5+ {[%clk 0:00:09]}  Ke6 {[%clk 0:00:01]} 72. Kg4 {[%clk 0:00:05]}  Kxe5 {[%clk 0:00:02]} 73. Nf2 {[%clk 0:00:06]}  Be3 {[%clk 0:00:01]} 74. Nd3+ {[%clk 0:00:07]} 1-0


[Site "https://www.chess.com"]

[Event "Titled Tuesday Blitz March 08 Early 2022"]
[White "Yang, Kaiqi"]
[Black "Pacuszka, Tomasz"]
[WhiteFideId "8604398"]
[BlackFideId "1119036"]
[WhiteElo "2373"]
[BlackElo "2083"]
[Result "1-0"]
[Round "01"]
[TimeControl "180+1"]
[Date "2022.03.09"]
[WhiteClock "0:00:12"]
[BlackClock "0:00:14"]

1. e4 {[%clk 0:03:00]}  c6 {[%clk 0:02:57]} 2. Ne2 {[%clk 0:02:59]}  d5 {[%clk 0:02:57]} 3. e5 {[%clk 0:02:59]}  Bf5 {[%clk 0:02:56]} 4. Ng3 {[%clk 0:02:59]}  Bg6 {[%clk 0:02:56]} 5. h4 {[%clk 0:03:00]}  h6 {[%clk 0:02:55]} 6. h5 {[%clk 0:03:00]}  Bh7 {[%clk 0:02:55]} 7. e6 {[%clk 0:03:01]}  fxe6 {[%clk 0:02:55]} 8. d4 {[%clk 0:03:01]}  Qc7 {[%clk 0:02:52]} 9. f4 {[%clk 0:02:47]}  Nf6 {[%clk 0:02:49]} 10. Bd3 {[%clk 0:02:42]}  Nbd7 {[%clk 0:02:43]} 11. Bxh7 {[%clk 0:02:34]}  Rxh7 {[%clk 0:02:42]} 12. Be3 {[%clk 0:02:33]}  O-O-O {[%clk 0:02:41]} 13. Nd2 {[%clk 0:02:34]}  Rh8 {[%clk 0:02:38]} 14. Nf3 {[%clk 0:02:33]}  Kb8 {[%clk 0:02:34]} 15. Qe2 {[%clk 0:02:32]}  Ne4 {[%clk 0:02:24]} 16. Nxe4 {[%clk 0:02:21]}  dxe4 {[%clk 0:02:24]} 17. Nh4 {[%clk 0:02:12]}  e5 {[%clk 0:02:19]} 18. fxe5 {[%clk 0:02:07]}  e6 {[%clk 0:02:19]} 19. Ng6 {[%clk 0:02:04]}  Rg8 {[%clk 0:02:19]} 20. O-O-O {[%clk 0:02:01]}  Bb4 {[%clk 0:02:17]} 21. c3 {[%clk 0:02:00]}  Ba5 {[%clk 0:02:17]} 22. Qg4 {[%clk 0:01:57]}  Rde8 {[%clk 0:02:16]} 23. Qxe4 {[%clk 0:01:57]}  Nb6 {[%clk 0:02:12]} 24. Kb1 {[%clk 0:01:51]}  Nd5 {[%clk 0:02:11]} 25. c4 {[%clk 0:01:43]}  Nxe3 {[%clk 0:01:58]} 26. Qxe3 {[%clk 0:01:44]}  Bb6 {[%clk 0:01:44]} 27. Rhf1 {[%clk 0:01:39]}  a5 {[%clk 0:01:38]} 28. Rf4 {[%clk 0:01:34]}  Rd8 {[%clk 0:01:37]} 29. a3 {[%clk 0:01:30]}  Rd7 {[%clk 0:01:35]} 30. c5 {[%clk 0:01:17]}  Bxc5 {[%clk 0:01:30]} 31. Rdf1 {[%clk 0:01:16]}  Bb6 {[%clk 0:01:26]} 32. Nf8 {[%clk 0:00:59]}  Re7 {[%clk 0:01:14]} 33. Qb3 {[%clk 0:00:58]}  Ka7 {[%clk 0:01:09]} 34. Nxe6 {[%clk 0:00:57]}  Qc8 {[%clk 0:01:04]} 35. Nf8 {[%clk 0:00:46]}  Rxf8 {[%clk 0:00:50]} 36. Rxf8 {[%clk 0:00:46]}  Qg4 {[%clk 0:00:50]} 37. d5 {[%clk 0:00:20]}  Qe4+ {[%clk 0:00:43]} 38. Ka2 {[%clk 0:00:20]}  cxd5 {[%clk 0:00:40]} 39. Rc1 {[%clk 0:00:15]}  a4 {[%clk 0:00:37]} 40. Qb4 {[%clk 0:00:14]}  Qxb4 {[%clk 0:00:33]} 41. axb4 {[%clk 0:00:15]}  Rxe5 {[%clk 0:00:31]} 42. Rf7 {[%clk 0:00:14]}  Re4 {[%clk 0:00:24]} 43. Rxg7 {[%clk 0:00:14]}  Rxb4 {[%clk 0:00:24]} 44. Rc2 {[%clk 0:00:13]}  Ka6 {[%clk 0:00:22]} 45. g4 {[%clk 0:00:13]}  d4 {[%clk 0:00:21]} 46. g5 {[%clk 0:00:13]}  hxg5 {[%clk 0:00:20]} 47. Rxg5 {[%clk 0:00:14]}  d3 {[%clk 0:00:20]} 48. Rcg2 {[%clk 0:00:13]}  Bd4 {[%clk 0:00:19]} 49. Rd5 {[%clk 0:00:14]}  Bf6 {[%clk 0:00:17]} 50. Rg6 {[%clk 0:00:13]}  Rb6 {[%clk 0:00:16]} 51. Rxd3 {[%clk 0:00:12]}  a3 {[%clk 0:00:14]} 52. bxa3 {[%clk 0:00:12]} 1-0


[Site "https://www.chess.com"]